bitfinex/quotes_BTCUSD_20241002
["timestamp","ask_amount","ask_price","bid_price","bid_amount"]
[1727877454817,0.00018236,61574.0,61573.0,0.35827471]
[1727877455043,0.00018236,61574.0,61570.0,0.4346451]
[1727877455297,0.57092666,61580.0,61579.0,0.162393]
[1727877455511,0.57092666,61580.0,61579.0,0.76022481]
[1727877455731,0.57092666,61580.0,61579.0,0.80829037]
[1727877455949,0.57092666,61580.0,61579.0,0.79290481]
[1727877456181,0.57092666,61580.0,61573.0,0.023]
[1727877456182,0.57092666,61580.0,61576.0,0.03268]
[1727877456424,0.57092666,61580.0,61579.0,0.195073]
[1727877456721,0.57092666,61580.0,61579.0,0.79290481]
[1727877456988,0.57092666,61580.0,61579.0,0.81590481]
[1727877457246,0.57092666,61580.0,61579.0,0.82990481]
[1727877457504,0.57092666,61580.0,61579.0,0.80690481]
[1727877457760,0.52632301,61580.0,61579.0,0.89500481]
[1727877458003,0.52632301,61580.0,61579.0,0.90900481]
[1727877458229,0.52632301,61580.0,61579.0,0.88600481]
[1727877458447,0.52632301,61580.0,61579.0,0.90900481]
[1727877458448,0.49828383,61580.0,61579.0,0.90900481]
[1727877458673,0.49828383,61580.0,61579.0,0.45135971]
[1727877458895,0.50828383,61580.0,61579.0,0.288173]
[1727877459610,0.50828383,61580.0,61579.0,0.274173]
[1727877459864,0.50828383,61580.0,61579.0,0.88600481]
[1727877460116,0.49246148,61580.0,61579.0,0.88600481]
[1727877460365,0.49246148,61580.0,61579.0,0.87200481]
[1727877460839,0.49246148,61580.0,61579.0,0.274173]
[1727877461059,0.49246148,61580.0,61579.0,0.03268]
[1727877461278,0.49246148,61580.0,61579.0,0.209073]
[1727877461496,0.49246148,61580.0,61579.0,0.6437181]
[1727877461974,0.49246148,61580.0,61579.0,0.04668]
[1727877462212,0.49246148,61580.0,61579.0,0.209073]
[1727877462430,0.49327848,61580.0,61579.0,0.209073]
[1727877462650,0.49327848,61580.0,61579.0,0.03268]
[1727877462872,0.49327848,61580.0,61579.0,0.04668]
[1727877463133,0.49327848,61580.0,61579.0,0.209073]
[1727877463355,0.49327848,61580.0,61579.0,0.04668]
[1727877463582,0.49327848,61580.0,61579.0,0.209073]
[1727877463807,0.65566848,61580.0,61579.0,0.04668]
[1727877464037,0.65566848,61580.0,61579.0,0.03268]
[1727877464284,0.65566848,61580.0,61579.0,0.04668]
[1727877464509,0.65566848,61580.0,61579.0,0.014]
[1727877465183,0.51874089,61580.0,61579.0,0.014]
[1727877465649,0.65566948,61580.0,61576.0,0.24424597]
[1727877465886,0.65566948,61580.0,61577.0,0.03268]
[1727877466108,0.49327848,61580.0,61579.0,0.04668]
[1727877466355,0.65566848,61580.0,61579.0,3.54668]
[1727877466583,0.65566848,61580.0,61579.0,3.53268]
[1727877466816,0.65566848,61580.0,61579.0,3.54368]
[1727877467538,0.49327848,61580.0,61579.0,3.706073]
[1727877468017,0.49327848,61580.0,61579.0,3.54368]
[1727877468252,0.65566848,61580.0,61579.0,3.54368]
[1727877468979,0.65566848,61580.0,61579.0,3.706073]
[1727877468980,0.49327848,61580.0,61579.0,3.706073]
[1727877469197,0.49327848,61580.0,61579.0,3.54368]
[1727877469444,0.65566848,61580.0,61579.0,3.54368]
[1727877469888,0.84676848,61580.0,61579.0,3.511]
[1727877470336,0.94676848,61580.0,61579.0,3.311]
[1727877470557,0.94876848,61580.0,61579.0,3.111]
[1727877470776,0.75766848,61580.0,61579.0,2.9132]
[1727877471006,0.78131738,61580.0,61579.0,2.71491104]
[1727877471260,1.40749338,61580.0,61579.0,2.56087404]
[1727877471492,0.78313853,61580.0,61579.0,2.56087404]
[1727877471726,0.68313853,61580.0,61579.0,2.56087404]
[1727877471919,0.68313853,61580.0,61579.0,2.54987404]
[1727877472179,0.68313853,61580.0,61579.0,2.48491604]
[1727877472180,0.94832524,61580.0,61579.0,2.48491604]
[1727877472422,1.13754324,61580.0,61579.0,2.48491604]
[1727877472685,1.13554324,61580.0,61579.0,2.48491604]
[1727877472929,1.13754324,61580.0,61579.0,2.48591604]
[1727877473221,0.78513853,61580.0,61579.0,2.48591604]
[1727877473496,0.78313853,61580.0,61579.0,2.48491604]
[1727877473741,0.78613853,61580.0,61579.0,2.48491604]
[1727877474258,0.93718155,61580.0,61579.0,2.48491604]
[1727877474845,0.93718155,61580.0,61579.0,2.45243704]
[1727877474846,1.87444355,61580.0,61579.0,2.32252104]
[1727877474853,1.87944355,61580.0,61579.0,2.32252104]
[1727877475049,1.91497355,61580.0,61579.0,2.22671604]
[1727877475262,1.91697355,61580.0,61579.0,2.19523704]
[1727877475466,1.91197355,61580.0,61579.0,2.19523704]
[1727877476777,1.91197355,61580.0,61579.0,2.03284204]
[1727877476778,2.68096555,61580.0,61579.0,2.03284204]
[1727877477017,2.49974455,61580.0,61579.0,1.96788404]
[1727877477440,2.43553555,61580.0,61579.0,1.96788404]
[1727877477854,1.53284053,61580.0,61579.0,1.96788404]
[1727877478145,1.44300653,61580.0,61579.0,1.96788404]
[1727877478533,1.45800653,61580.0,61579.0,1.80548904]
[1727877478763,1.48100653,61580.0,61579.0,1.74053104]
[1727877478986,1.06601853,61580.0,61579.0,1.64309404]
[1727877479212,0.78313853,61580.0,61579.0,1.64309404]
[1727877479426,0.78113853,61580.0,61579.0,1.64209404]
[1727877479648,1.27243593,61580.0,61579.0,1.64309404]
[1727877480078,2.21432264,61580.0,61579.0,1.64309404]
[1727877480460,2.21132264,61580.0,61579.0,1.64309404]
[1727877480704,1.27838293,61580.0,61579.0,1.64309404]
[1727877480916,1.07150493,61580.0,61579.0,1.64309404]
[1727877481164,1.06450493,61580.0,61579.0,1.64209404]
[1727877481378,1.07750493,61580.0,61579.0,1.64309404]
[1727877481818,1.07750493,61580.0,61579.0,1.64209404]
[1727877481819,1.06450493,61580.0,61579.0,1.64209404]
[1727877482087,1.22969164,61580.0,61579.0,1.64209404]
[1727877482302,1.35252164,61580.0,61579.0,1.64209404]
[1727877482489,1.18933493,61580.0,61579.0,1.64209404]
[1727877482737,1.18033493,61580.0,61579.0,1.64209404]
[1727877483167,1.29207293,61580.0,61579.0,1.64209404]
[1727877483811,1.23790493,61580.0,61579.0,1.64209404]
[1727877484020,1.07650493,61580.0,61579.0,1.64209404]
[1727877484239,1.07450493,61580.0,61579.0,1.64209404]
[1727877484504,1.06450493,61580.0,61579.0,1.64209404]
[1727877484732,0.51874853,61580.0,61579.0,1.64209404]
[1727877484945,0.51874853,61580.0,61579.0,1.80548704]
[1727877485156,0.50727848,61580.0,61579.0,1.80548704]
[1727877485828,0.49327848,61580.0,61579.0,1.83716704]
[1727877486044,0.50327848,61580.0,61579.0,1.83816704]
[1727877486502,0.50327848,61580.0,61579.0,2.02076704]
[1727877488231,0.50327848,61580.0,61579.0,1.85837404]
[1727877488487,0.66566848,61580.0,61579.0,1.64309404]
[1727877488732,0.65566848,61580.0,61579.0,1.64209404]
[1727877489438,0.68113304,61580.0,61579.0,1.64209404]
[1727877489718,0.68213304,61580.0,61579.0,1.65409404]
[1727877489980,0.78213304,61580.0,61579.0,1.65409404]
[1727877490239,0.92913304,61580.0,61579.0,1.65409404]
[1727877490488,1.29669375,61580.0,61579.0,1.65409404]
[1727877490709,1.29569375,61580.0,61579.0,1.5783775]
[1727877490935,0.78113304,61580.0,61579.0,1.5783775]
[1727877491394,0.78313304,61580.0,61579.0,1.5783775]
[1727877492071,1.84671504,61580.0,61579.0,1.5783775]
[1727877492330,0.98796104,61580.0,61579.0,1.5803775]
[1727877492757,0.98796104,61580.0,61579.0,1.5783775]
[1727877492961,1.16414775,61580.0,61579.0,1.5793775]
[1727877493387,1.15114775,61580.0,61579.0,1.5783775]
[1727877493834,1.10741275,61580.0,61579.0,1.5793775]
[1727877494090,0.94422604,61580.0,61579.0,1.5793775]
[1727877494298,1.39832904,61580.0,61579.0,1.5793775]
[1727877494505,0.79613304,61580.0,61579.0,1.5793775]
[1727877495184,0.69413304,61580.0,61579.0,1.5793775]
[1727877495627,0.53174304,61580.0,61579.0,1.7417705]
[1727877495852,0.51874304,61580.0,61579.0,1.5783775]
[1727877496075,0.51874304,61580.0,61579.0,1.5793775]
[1727877496076,0.53174304,61580.0,61579.0,1.5793775]
[1727877496291,0.53174304,61580.0,61579.0,1.7417705]
[1727877496544,0.51874304,61580.0,61579.0,1.7407705]
[1727877496997,0.51874304,61580.0,61579.0,1.7417705]
[1727877497498,0.51874304,61580.0,61579.0,1.7407705]
[1727877497719,0.51974304,61580.0,61579.0,1.7477705]
[1727877498985,0.51874304,61580.0,61579.0,1.7407705]
[1727877499192,0.51874304,61580.0,61579.0,1.5793775]
[1727877499402,0.65566848,61580.0,61579.0,1.5793775]
[1727877500057,0.65566848,61580.0,61579.0,1.5783775]
[1727877500280,0.71666848,61580.0,61579.0,1.5863775]
[1727877500715,0.70566848,61580.0,61579.0,1.5783775]
[1727877500929,0.83113407,61580.0,61579.0,1.5783775]
[1727877502068,0.73113407,61580.0,61579.0,1.5783775]
[1727877502935,0.73113407,61580.0,61579.0,1.5793775]
[1727877503173,0.73113407,61580.0,61579.0,1.5693775]
[1727877503394,0.73113407,61580.0,61579.0,1.5683775]
[1727877503597,0.73113407,61580.0,61579.0,1.5703775]
[1727877503852,0.73313407,61580.0,61579.0,1.5703775]
[1727877504109,0.73113407,61580.0,61579.0,1.5703775]
[1727877505304,0.89632078,61580.0,61579.0,1.5703775]
[1727877505752,0.83313407,61580.0,61579.0,1.5703775]
[1727877505753,0.87941846,61580.0,61579.0,1.5703775]
[1727877506001,0.83313407,61580.0,61579.0,1.5703775]
[1727877506237,0.83113407,61580.0,61579.0,1.5683775]
[1727877506502,0.84213407,61580.0,61579.0,1.5693775]
[1727877506741,0.74213407,61580.0,61579.0,1.5693775]
[1727877507301,0.73113407,61580.0,61579.0,1.5683775]
[1727877507511,0.74213407,61580.0,61579.0,1.5693775]
[1727877509046,0.73113407,61580.0,61579.0,1.5673775]
[1727877509552,0.73213407,61580.0,61579.0,1.5673775]
[1727877510051,0.73113407,61580.0,61579.0,1.5673775]
[1727877510312,0.73213407,61580.0,61579.0,1.8361775]
[1727877510589,0.56974407,61580.0,61579.0,1.8361775]
[1727877510838,0.73113407,61580.0,61579.0,1.8361775]
[1727877512565,0.73213407,61580.0,61579.0,1.8361775]
[1727877512810,1.01441656,61580.0,61579.0,1.5673775]
[1727877513054,0.73113407,61580.0,61579.0,1.5673775]
[1727877513959,1.23415007,61580.0,61579.0,1.5673775]
[1727877513963,1.24142297,61580.0,61579.0,0.75802117]
[1727877514245,1.19882707,61580.0,61579.0,0.75802117]
[1727877514500,1.22182707,61580.0,61579.0,0.75802117]
[1727877514729,1.22182707,61580.0,61579.0,0.66058417]
[1727877514997,1.38501378,61580.0,61579.0,0.59562617]
[1727877515529,1.38880307,61580.0,61579.0,0.59562617]
[1727877515797,1.38980307,61580.0,61579.0,0.53066817]
[1727877516068,1.39980307,61580.0,61579.0,0.43323117]
[1727877516482,1.39880307,61580.0,61579.0,0.43323117]
[1727877516741,1.38980307,61580.0,61579.0,0.43423117]
[1727877517027,2.08980307,61580.0,61579.0,0.27183617]
[1727877518001,2.15173624,61580.0,61579.0,0.08532166]
[1727877518252,2.11280307,61580.0,61579.0,0.06897234]
[1727877518503,2.11280307,61580.0,61579.0,0.05241639]
[1727877518764,2.10280307,61580.0,61579.0,0.05241639]
[1727877519013,1.91661636,61580.0,61579.0,0.05241639]
[1727877519261,0.74513407,61580.0,61579.0,0.05241639]
[1727877520016,0.73113407,61580.0,61579.0,0.05141639]
[1727877520509,0.73113407,61580.0,61579.0,0.05241639]
[1727877520510,0.74513407,61580.0,61579.0,0.05241639]
[1727877520777,1.41074327,61580.0,61579.0,0.05241639]
[1727877521027,1.51074327,61580.0,61579.0,3.9e-07]
[1727877521274,1.29360327,61580.0,61579.0,3.9e-07]
[1727877521496,1.41502801,61580.0,61579.0,3.9e-07]
[1727877521711,0.262408,61573.0,61572.0,0.24424597]
[1727877521926,0.162429,61565.0,61564.0,0.24424597]
[1727877522371,0.16244,61561.0,61560.0,0.0775]
[1727877523075,0.16244,61561.0,61558.0,0.03268]
[1727877523076,0.162445,61559.0,61558.0,0.03268]
[1727877523296,0.162445,61559.0,61558.0,0.02768]
[1727877525089,0.162485,61544.0,61543.0,0.0771]
[1727877525772,0.162519,61531.0,61530.0,0.24424597]
[1727877525991,0.162519,61531.0,61530.0,0.27692597]
[1727877526217,0.325035,61532.0,61526.0,0.2655]
[1727877526218,0.162522,61530.0,61526.0,0.2655]
[1727877526449,0.324982,61542.0,61526.0,0.2655]
[1727877526450,0.162525,61529.0,61527.0,0.03268]
[1727877526665,0.325043,61531.0,61527.0,0.03268]
[1727877526896,0.26972651,61544.0,61527.0,0.03268]
[1727877526897,0.162501,61538.0,61530.0,0.001]
[1727877527138,0.001,61531.0,61530.0,0.196202]
[1727877527358,0.02548172,61533.0,61532.0,0.195197]
[1727877527575,0.162492,61542.0,61534.0,0.03268]
[1727877527852,0.24424597,61552.0,61536.0,0.0811]
[1727877527853,0.24424597,61537.0,61536.0,0.0811]
[1727877528069,0.26972675,61544.0,61536.0,0.0811]
[1727877528291,0.157501,61538.0,61536.0,0.0811]
[1727877528718,0.162503,61537.0,61536.0,0.0811]
[1727877528934,0.324986,61541.0,61536.0,0.0811]
[1727877529155,0.162503,61537.0,61536.0,0.0811]
[1727877529601,0.26972675,61544.0,61536.0,0.0811]
[1727877529602,0.001,61538.0,61536.0,0.0811]
[1727877529836,0.02548078,61544.0,61537.0,0.03268]
[1727877530062,0.24424597,61543.0,61540.0,0.324991]
[1727877530292,0.24424597,61543.0,61536.0,0.36438249]
[1727877530524,0.02548078,61544.0,61536.0,0.0811]
[1727877530746,0.18796778,61544.0,61536.0,0.406109]
[1727877530980,0.35045578,61544.0,61536.0,0.0811]
[1727877531198,0.35045578,61544.0,61537.0,0.03268]
[1727877531421,0.162491,61542.0,61537.0,0.03268]
[1727877531640,0.162498,61539.0,61537.0,0.03268]
[1727877531869,0.02548078,61544.0,61536.0,0.0821]
[1727877532100,0.02548078,61544.0,61536.0,0.0811]
[1727877532101,0.162503,61537.0,61536.0,0.0811]
[1727877532785,0.162506,61536.0,61535.0,0.1844]
[1727877533006,0.162506,61536.0,61526.0,0.0756]
[1727877533007,0.16253,61527.0,61526.0,0.0756]
[1727877534161,0.18801635,61527.0,61526.0,0.0756]
[1727877534827,0.02548635,61527.0,61526.0,0.0756]
[1727877535270,0.02548635,61527.0,61526.0,0.238132]
[1727877535541,0.02548635,61527.0,61526.0,0.239772]
[1727877535978,0.02548635,61527.0,61526.0,0.07824]
[1727877536200,0.02548635,61527.0,61526.0,0.11092]
[1727877536427,0.18801635,61527.0,61526.0,0.07724]
[1727877536651,0.18901635,61527.0,61526.0,0.08724]
[1727877537107,0.18901635,61527.0,61526.0,0.01164]
[1727877537337,1.68437117,61527.0,61526.0,0.01164]
[1727877537581,1.10631817,61527.0,61526.0,0.01164]
[1727877538098,1.10531817,61527.0,61526.0,0.00164]
[1727877538349,1.10531817,61527.0,61526.0,0.01064]
[1727877538570,1.10631817,61527.0,61526.0,0.01064]
[1727877539000,1.80531817,61527.0,61526.0,0.00164]
[1727877539424,1.81931817,61527.0,61526.0,0.00264]
[1727877539644,1.91016437,61527.0,61526.0,0.00264]
[1727877539855,1.91016437,61527.0,61526.0,0.00164]
[1727877539856,1.89616437,61527.0,61526.0,0.00164]
[1727877540072,0.99501635,61527.0,61526.0,0.00164]
[1727877540510,0.89301635,61527.0,61526.0,0.00164]
[1727877541917,1.00701635,61527.0,61526.0,0.00264]
[1727877542346,1.00701635,61527.0,61526.0,0.00164]
[1727877542347,0.99301635,61527.0,61526.0,0.00164]
[1727877542559,0.29301635,61527.0,61526.0,0.00164]
[1727877542772,0.30701635,61527.0,61526.0,0.00264]
[1727877543239,0.29301635,61527.0,61526.0,0.00164]
[1727877543650,0.30701635,61527.0,61526.0,0.00264]
[1727877544527,0.36288571,61527.0,61526.0,0.00264]
[1727877544742,0.30901635,61527.0,61526.0,0.00264]
[1727877544954,0.30901635,61527.0,61526.0,0.00164]
[1727877544955,0.29501635,61527.0,61526.0,0.00164]
[1727877545172,0.29701635,61527.0,61526.0,0.00164]
[1727877545392,0.46020306,61527.0,61526.0,0.00164]
[1727877545851,0.45820306,61527.0,61526.0,0.00164]
[1727877546064,1.15820306,61527.0,61526.0,0.00164]
[1727877546279,1.15820306,61527.0,61526.0,0.00264]
[1727877546280,2.85444906,61527.0,61526.0,0.00264]
[1727877546515,1.70312006,61527.0,61526.0,0.00264]
[1727877546733,1.65693706,61527.0,61526.0,0.00164]
[1727877546947,0.58206424,61527.0,61526.0,0.00164]
[1727877547178,0.82631021,61527.0,61526.0,0.00164]
[1727877547409,0.82631021,61527.0,61525.0,1e-06]
[1727877547410,0.302532,61526.0,61525.0,1e-06]
[1727877547638,0.302532,61526.0,61485.0,0.24424597]
[1727877547639,0.162585,61506.0,61492.0,0.0769]
[1727877547870,0.69621569,61506.0,61492.0,0.0769]
[1727877548083,0.162604,61499.0,61492.0,0.0769]
[1727877548301,0.1,61498.0,61493.0,0.24424597]
[1727877548566,0.162612,61496.0,61492.0,0.0769]
[1727877549221,0.262612,61496.0,61492.0,0.0769]
[1727877550574,0.004,61498.0,61497.0,0.162609]
[1727877550793,0.004,61498.0,61494.0,0.32523]
[1727877551058,0.004,61498.0,61496.0,0.325224]
[1727877551308,0.56939997,61510.0,61503.0,0.162592]
[1727877551532,0.24424597,61510.0,61495.0,0.001634]
[1727877551759,0.40682097,61510.0,61505.0,0.162587]
[1727877551976,0.162581,61508.0,61503.0,0.162592]
[1727877552204,0.43363069,61524.0,61502.0,0.32484597]
[1727877552438,0.24424597,61509.0,61507.0,0.03268]
[1727877552657,0.1,61512.0,61503.0,0.1752]
[1727877552886,0.162588,61505.0,61503.0,0.1752]
[1727877553115,0.162591,61504.0,61503.0,0.1752]
[1727877553335,0.1,61512.0,61503.0,0.1752]
[1727877553336,0.162588,61505.0,61503.0,0.1752]
[1727877553552,0.1,61512.0,61503.0,0.1752]
[1727877553772,0.162591,61504.0,61503.0,0.1752]
[1727877553992,0.24424597,61507.0,61503.0,0.1752]
[1727877553993,0.162589,61505.0,61503.0,0.1752]
[1727877554421,0.162579,61509.0,61503.0,0.337792]
[1727877554638,0.162579,61509.0,61503.0,0.1752]
[1727877554639,0.24424597,61508.0,61503.0,0.1752]
[1727877554913,0.16259,61505.0,61503.0,0.1752]
[1727877555146,0.162591,61504.0,61503.0,0.1752]
[1727877556462,0.162591,61504.0,61503.0,0.1762]
[1727877556688,0.162591,61504.0,61503.0,0.1712]
[1727877557148,0.262591,61504.0,61503.0,0.001]
[1727877557814,0.1,61503.0,61492.0,0.0829]
[1727877558038,0.1,61504.0,61492.0,0.0829]
[1727877558039,0.162612,61496.0,61492.0,0.0829]
[1727877558969,0.262612,61496.0,61492.0,0.0829]
[1727877561452,0.263612,61496.0,61492.0,0.0829]
[1727877561896,0.262612,61496.0,61492.0,0.0829]
[1727877562112,0.265612,61496.0,61492.0,0.0829]
[1727877562338,0.003,61496.0,61492.0,0.245521]
[1727877562563,0.162612,61496.0,61492.0,0.0829]
[1727877562784,0.24424597,61499.0,61492.0,0.0829]
[1727877563013,0.162612,61496.0,61495.0,0.002634]
[1727877563258,0.325203,61500.0,61495.0,0.002634]
[1727877563477,0.162612,61496.0,61495.0,0.002634]
[1727877563926,0.325203,61500.0,61495.0,0.002634]
[1727877564144,0.00082,61504.0,61495.0,0.002634]
[1727877564145,0.325193,61502.0,61495.0,0.002634]
[1727877564362,0.162602,61500.0,61495.0,0.165248]
[1727877564593,0.325202,61501.0,61495.0,0.165248]
[1727877564594,0.56944797,61501.0,61495.0,0.002634]
[1727877564842,0.162612,61496.0,61495.0,0.002634]
[1727877565350,0.162612,61496.0,61495.0,0.001634]
[1727877565621,0.163612,61496.0,61495.0,0.005634]
[1727877566154,0.162612,61496.0,61495.0,0.001634]
[1727877566395,0.262612,61496.0,61495.0,0.001634]
[1727877566659,0.266612,61496.0,61495.0,0.001634]
[1727877567197,1.08961728,61496.0,61495.0,0.001634]
[1727877567441,0.542142,61496.0,61495.0,0.001634]
[1727877567676,0.262612,61496.0,61495.0,0.001634]
[1727877568629,0.266612,61496.0,61495.0,0.001634]
[1727877569140,0.262612,61496.0,61495.0,0.001634]
[1727877569397,0.265612,61496.0,61495.0,0.001634]
[1727877569875,0.262612,61496.0,61495.0,0.001634]
[1727877570392,0.266612,61496.0,61495.0,0.001634]
[1727877572295,0.262612,61496.0,61495.0,0.001634]
[1727877572523,0.263612,61496.0,61495.0,0.001634]
[1727877572980,0.264612,61496.0,61495.0,0.001634]
[1727877573214,0.262612,61496.0,61495.0,0.001634]
[1727877573874,0.968612,61496.0,61495.0,0.001634]
[1727877574099,0.966612,61496.0,61495.0,0.001634]
[1727877574618,0.004,61496.0,61495.0,0.001634]
[1727877575098,0.004,61496.0,61495.0,0.194434]
[1727877575328,1.053697,61496.0,61495.0,0.001634]
[1727877575564,1.209461,61496.0,61495.0,0.001634]
[1727877575786,1.309461,61496.0,61495.0,0.001634]
[1727877576010,1.803461,61496.0,61495.0,0.001634]
[1727877576244,1.804461,61496.0,61495.0,0.005634]
[1727877576496,1.75818221,61496.0,61495.0,0.005634]
[1727877576731,2.45718221,61496.0,61495.0,0.001634]
[1727877577255,2.47118221,61496.0,61495.0,0.001634]
[1727877577507,2.47118221,61496.0,61469.0,0.1928]
[1727877577508,0.35,61476.0,61461.0,0.24424597]
[1727877577742,0.35,61476.0,61449.0,0.24424597]
[1727877577743,0.002,61457.0,61449.0,0.24424597]
[1727877577970,0.262733,61450.0,61449.0,0.24424597]
[1727877578197,0.28408485,61471.0,61446.0,0.0754]
[1727877578421,0.162721,61455.0,61446.0,0.0754]
[1727877578676,0.1,61459.0,61446.0,0.0754]
[1727877578677,0.325426,61458.0,61446.0,0.0754]
[1727877578899,0.1,61459.0,61446.0,0.0754]
[1727877578900,0.162725,61454.0,61446.0,0.0754]
[1727877579124,0.1,61459.0,61446.0,0.0754]
[1727877579359,0.162737,61449.0,61446.0,0.0754]
[1727877579635,0.1,61459.0,61446.0,0.0754]
[1727877579868,0.34424597,61459.0,61446.0,0.0754]
[1727877580085,0.1,61457.0,61446.0,0.238143]
[1727877580539,0.1,61457.0,61446.0,0.0754]
[1727877580783,0.25824597,61459.0,61446.0,0.0754]
[1727877581041,0.24424597,61458.0,61454.0,0.1888]
[1727877581711,0.1,61466.0,61454.0,0.1888]
[1727877581712,0.325388,61465.0,61454.0,0.1888]
[1727877581936,0.005,61457.0,61454.0,0.1888]
[1727877582394,0.325388,61465.0,61454.0,0.1888]
[1727877582634,0.24424597,61460.0,61454.0,0.1888]
[1727877582873,0.162681,61470.0,61461.0,0.162703]
[1727877583101,0.24424597,61463.0,61455.0,0.24052]
[1727877583332,0.162705,61461.0,61455.0,0.0778]
[1727877583555,0.24424597,61460.0,61455.0,0.0778]
[1727877583787,0.162708,61460.0,61455.0,0.0778]
[1727877584011,0.56964897,61463.0,61455.0,0.0778]
[1727877584229,0.16268,61470.0,61462.0,0.1627]
[1727877584452,0.24424597,61484.0,61455.0,0.08105427]
[1727877584453,0.24424597,61462.0,61457.0,0.325428]
[1727877584711,0.325358,61471.0,61457.0,0.325428]
[1727877584712,0.325358,61471.0,61458.0,0.325421]
[1727877584904,0.24424597,61466.0,61461.0,0.162703]
[1727877585134,0.24424597,61466.0,61455.0,0.0778]
[1727877585135,0.004,61465.0,61455.0,0.0778]
[1727877585355,0.004,61465.0,61464.0,0.353196]
[1727877585589,0.004,61465.0,61464.0,0.385876]
[1727877585813,0.16268,61471.0,61464.0,0.30458]
[1727877586099,0.162666,61476.0,61471.0,0.162677]
[1727877586329,0.7,61492.0,61473.0,0.162673]
[1727877586330,0.325277,61486.0,61473.0,0.162673]
[1727877586551,0.162653,61481.0,61473.0,0.459453]
[1727877586778,0.56953697,61484.0,61473.0,0.29678]
[1727877586779,0.325302,61482.0,61473.0,0.29678]
[1727877587006,0.162649,61482.0,61478.0,0.162659]
[1727877587217,0.24424597,61484.0,61481.0,0.162649]
[1727877587466,0.24424597,61484.0,61479.0,0.162654]
[1727877587693,0.24424597,61484.0,61481.0,0.162649]
[1727877587923,0.24424597,61484.0,61480.0,0.162653]
[1727877588153,0.24424597,61484.0,61480.0,0.162654]
[1727877588375,0.24424597,61484.0,61473.0,0.54818485]
[1727877588376,0.24506597,61503.0,61481.0,0.1932]
[1727877588629,0.24424597,61487.0,61482.0,0.10988]
[1727877588848,0.325265,61489.0,61482.0,0.0772]
[1727877589070,0.325225,61496.0,61482.0,0.0772]
[1727877589313,0.325234,61495.0,61483.0,0.28408485]
[1727877589532,0.325234,61495.0,61487.0,0.03268]
[1727877589533,0.16262,61493.0,61487.0,0.03268]
[1727877589751,0.16262,61493.0,61482.0,0.0772]
[1727877589752,0.24506597,61503.0,61482.0,0.0772]
[1727877589993,0.325258,61490.0,61483.0,0.325292]
[1727877590226,0.325272,61487.0,61482.0,0.0772]
[1727877590443,0.004,61489.0,61487.0,0.162633]
[1727877590668,0.162636,61487.0,61483.0,0.03268]
[1727877590886,0.004,61489.0,61484.0,0.325287]
[1727877591110,0.004,61489.0,61488.0,0.162633]
[1727877591580,0.004,61489.0,61482.0,0.0772]
[1727877591581,0.162645,61484.0,61482.0,0.0772]
[1727877591800,0.162646,61483.0,61482.0,0.0772]
[1727877593253,0.325302,61482.0,61474.0,0.0795]
[1727877593520,0.162667,61475.0,61474.0,0.0795]
[1727877594059,0.162667,61475.0,61471.0,0.1889]
[1727877594060,0.162675,61472.0,61471.0,0.1889]
[1727877594318,0.325323,61478.0,61471.0,0.1889]
[1727877594558,0.002,61483.0,61482.0,0.162649]
[1727877594802,0.24424597,61484.0,61482.0,0.0801]
[1727877595098,0.1,61489.0,61488.0,0.162633]
[1727877595340,0.1,61489.0,61482.0,0.0801]
[1727877595341,0.24424597,61484.0,61483.0,0.162644]
[1727877595564,0.162636,61487.0,61483.0,0.162644]
[1727877595793,0.0755,61487.0,61482.0,0.405396]
[1727877596011,0.1,61489.0,61488.0,0.162633]
[1727877596244,0.162617,61494.0,61490.0,0.162626]
[1727877596470,0.162619,61494.0,61490.0,0.162627]
[1727877596699,0.162619,61494.0,61483.0,0.1855]
[1727877596700,0.162631,61489.0,61485.0,0.162639]
[1727877596922,0.162617,61495.0,61491.0,0.162624]
[1727877597147,0.162617,61495.0,61488.0,0.325266]
[1727877597148,0.24424597,61492.0,61488.0,0.325266]
[1727877597391,0.162622,61493.0,61490.0,0.162627]
[1727877597622,0.325234,61495.0,61490.0,0.162627]
[1727877597846,0.16261,61497.0,61483.0,0.1855]
[1727877598097,0.24424597,61502.0,61488.0,0.325265]
[1727877598098,0.325217,61498.0,61488.0,0.325265]
[1727877598329,0.162618,61494.0,61491.0,0.162624]
[1727877598544,0.162616,61495.0,61491.0,0.162624]
[1727877598757,0.325222,61497.0,61491.0,0.162624]
[1727877598988,0.162614,61496.0,61492.0,0.16262]
[1727877599222,0.325221,61497.0,61491.0,0.162622]
[1727877599453,0.325221,61497.0,61488.0,0.325264]
[1727877599454,0.28408485,61515.0,61487.0,0.28408485]
[1727877599674,0.001,61495.0,61483.0,0.1855]
[1727877599899,0.24424597,61494.0,61485.0,0.325279]
[1727877600124,0.001,61495.0,61486.0,0.325274]
[1727877600344,0.001,61495.0,61483.0,0.1851]
[1727877600562,0.001,61495.0,61494.0,0.162617]
[1727877600779,0.24424597,61493.0,61492.0,0.195302]
[1727877601003,0.001,61495.0,61492.0,0.162621]
[1727877601223,0.24424597,61494.0,61490.0,0.325255]
[1727877601510,0.325222,61497.0,61491.0,0.162624]
[1727877601728,0.162612,61496.0,61492.0,0.16262]
[1727877602169,0.162612,61496.0,61493.0,0.162619]
[1727877602406,0.1,61500.0,61493.0,0.325238]
[1727877602632,0.001,61494.0,61490.0,0.03268]
[1727877603126,0.325215,61498.0,61493.0,0.162619]
[1727877603372,0.00082,61503.0,61491.0,0.03268]
[1727877603606,0.24424597,61500.0,61495.0,0.2791]
[1727877603836,0.162612,61496.0,61495.0,0.2791]
[1727877604986,0.162636,61487.0,61486.0,0.083]
[1727877605210,0.325256,61490.0,61475.0,0.083]
[1727877605465,0.162665,61476.0,61475.0,0.32724597]
[1727877605729,0.162665,61476.0,61475.0,0.083]
[1727877605964,0.325286,61485.0,61475.0,0.083]
[1727877606203,0.1,61485.0,61475.0,0.40833]
[1727877606475,0.42235492,61499.0,61467.0,0.28408485]
[1727877606476,0.24424597,61500.0,61484.0,0.28408485]
[1727877606724,0.24424597,61500.0,61492.0,0.162622]
[1727877607178,0.24424597,61500.0,61491.0,0.325249]